bitfinex/quotes_BTCUSD_20251226
["timestamp","ask_amount","ask_price","bid_price","bid_amount"]
[1766736065999,0.01128757,88593.0,88584.0,0.00014758]
[1766736066250,0.34338,88592.0,88572.0,0.0002]
[1766736066448,0.34338,88592.0,88579.0,0.01128935]
[1766736066726,0.34358,88608.0,88592.0,4.2e-05]
[1766736067030,0.34358,88608.0,88597.0,1e-08]
[1766736067235,0.34358,88608.0,88593.0,0.0564378]
[1766736067456,0.34358,88608.0,88594.0,0.01128744]
[1766736067660,0.000158,88608.0,88604.0,0.01128617]
[1766736068135,0.000158,88608.0,88603.0,0.01128629]
[1766736068332,0.0002457,88606.0,88603.0,0.01128629]
[1766736068834,0.0002,88626.0,88612.0,0.05642552]
[1766736069038,0.0117479,88626.0,88617.0,0.01128451]
[1766736069245,0.0117479,88626.0,88614.0,0.04498447]
[1766736069246,0.0003079,88626.0,88623.0,0.01102848]
[1766736069466,0.35482,88643.0,88627.0,0.01128324]
[1766736069665,0.35517958,88643.0,88629.0,0.01128298]
[1766736069813,0.000549,88629.0,88628.0,0.01128311]
[1766736070014,0.35517958,88643.0,88630.0,0.01128237]
[1766736070217,0.00035958,88643.0,88631.0,0.05641367]
[1766736070416,0.0004,88644.0,88634.0,0.06769393]
[1766736070628,0.0004,88644.0,88635.0,0.02272222]
[1766736070822,0.0004,88644.0,88635.0,0.01144]
[1766736071027,0.0004,88644.0,88634.0,0.01149158]
[1766736072482,0.00014945,88644.0,88629.0,0.02272298]
[1766736072626,0.00050903,88644.0,88629.0,0.07913733]
[1766736072834,0.34388903,88644.0,88629.0,0.01144]
[1766736073050,0.34388903,88644.0,88629.0,0.02272298]
[1766736073500,0.34388903,88644.0,88629.0,0.07913777]
[1766736073660,0.34388903,88644.0,88630.0,0.01128286]
[1766736073858,0.00050903,88644.0,88632.0,0.0112826]
[1766736074372,0.01034181,88649.0,88630.0,0.01128286]
[1766736074373,0.01034181,88649.0,88630.0,0.06769708]
[1766736074571,0.02162225,88649.0,88630.0,0.00035958]
[1766736074777,0.01034181,88649.0,88630.0,0.00035958]
[1766736075002,0.01034181,88649.0,88633.0,0.01128247]
[1766736075376,0.01034181,88649.0,88635.0,0.01128222]
[1766736075582,0.01034181,88649.0,88632.0,0.0112826]
[1766736075795,0.01034181,88649.0,88631.0,0.01128273]
[1766736075998,0.01034181,88649.0,88630.0,0.00035958]
[1766736075999,0.02162225,88649.0,88630.0,0.00035958]
[1766736076215,0.43558225,88649.0,88630.0,0.00035958]
[1766736076434,0.43558225,88649.0,88631.0,1e-08]
[1766736076660,0.43594183,88649.0,88631.0,1e-08]
[1766736076849,0.42466139,88649.0,88631.0,1e-08]
[1766736077048,0.42466139,88649.0,88635.0,0.01128222]
[1766736077243,0.42466139,88649.0,88636.0,0.05641014]
[1766736077403,0.42466139,88649.0,88636.0,0.01128209]
[1766736077807,0.42466139,88649.0,88634.0,0.0451291]
[1766736078020,0.43594183,88649.0,88631.0,1e-08]
[1766736078419,0.41396,88647.0,88627.0,0.01128324]
[1766736078622,0.41396,88644.0,88628.0,0.01144]
[1766736078960,0.41396,88641.0,88619.0,0.01128426]
[1766736079163,0.41396,88627.0,88604.0,0.01128617]
[1766736079393,0.4254,88626.0,88610.0,0.0112854]
[1766736079806,0.4254,88626.0,88606.0,0.05642942]
[1766736079807,0.425244,88621.0,88596.0,0.01128719]
[1766736080006,0.425244,88621.0,88597.0,0.01128706]
[1766736080007,0.41396,88616.0,88597.0,0.01128706]
[1766736080163,0.41396,88614.0,88601.0,0.01128655]
[1766736080363,0.41396,88614.0,88603.0,0.01128629]
[1766736080567,0.01144,88615.0,88614.0,0.000308]
[1766736080785,0.01144,88615.0,88601.0,0.01128655]
[1766736080981,0.01144,88615.0,88604.0,0.0002]
[1766736081193,0.01144,88615.0,88605.0,0.01128604]
[1766736081597,0.01144,88615.0,88604.0,0.01148617]
[1766736081798,0.01144,88616.0,88605.0,0.01128604]
[1766736082631,0.41396,88622.0,88606.0,0.01128591]
[1766736082847,0.01144,88616.0,88607.0,0.01128579]
[1766736083171,0.01144,88616.0,88606.0,0.01128591]
[1766736083318,0.01144,88616.0,88607.0,0.01128579]
[1766736083740,0.4254,88622.0,88609.0,0.01128553]
[1766736083915,0.4254,88622.0,88608.0,0.06771388]
[1766736084317,0.01144,88621.0,88608.0,0.01128566]
[1766736084729,0.01144,88621.0,88609.0,0.01128553]
[1766736084994,0.01144,88621.0,88610.0,0.0112854]
[1766736085191,0.00024567,88614.0,88610.0,0.0112854]
[1766736085391,6.7e-07,88614.0,88609.0,0.01128553]
[1766736085594,0.01144,88621.0,88612.0,0.01128515]
[1766736085997,0.01144,88621.0,88610.0,0.0112854]
[1766736086210,0.01144,88635.0,88621.0,0.000305]
[1766736086348,0.01144,88635.0,88610.0,0.40503]
[1766736086756,0.01144,88635.0,88619.0,0.01128426]
[1766736086957,0.01144,88635.0,88618.0,0.02272438]
[1766736087393,0.01144,88635.0,88619.0,0.01128426]
[1766736088318,0.01144,88635.0,88620.0,0.01128413]
[1766736088546,0.01144,88635.0,88621.0,0.011284]
[1766736088756,0.01128133,88642.0,88623.0,0.01128375]
[1766736088928,0.01144,88637.0,88623.0,0.01128375]
[1766736089135,0.01144,88637.0,88625.0,0.01128349]
[1766736089316,0.01144,88637.0,88624.0,0.01128362]
[1766736089681,0.01144,88637.0,88623.0,0.01128375]
[1766736089892,0.01144,88637.0,88627.0,0.01128324]
[1766736090065,0.41396,88641.0,88630.0,1e-08]
[1766736090274,0.01144,88645.0,88629.0,0.01128298]
[1766736090827,0.01144,88645.0,88630.0,0.01128286]
[1766736091034,0.01034181,88649.0,88632.0,0.0112826]
[1766736091237,0.01070139,88649.0,88634.0,0.01128235]
[1766736091841,0.01070139,88649.0,88635.0,0.06766238]
[1766736091842,0.0066795,88649.0,88635.0,0.06766238]
[1766736092062,0.0114,88650.0,88638.0,0.05640912]
[1766736092264,0.0135785,88656.0,88638.0,0.05640912]
[1766736092265,0.05639839,88655.0,88638.0,0.01140001]
[1766736092466,0.03625805,88656.0,88638.0,0.01140001]
[1766736092467,0.00076756,88639.0,88638.0,0.01085101]
[1766736092876,0.01128006,88652.0,88638.0,0.01085101]
[1766736093084,0.42524006,88652.0,88638.0,0.01085101]
[1766736093324,0.0004,88658.0,88640.0,0.60397416]
[1766736093533,0.01128006,88652.0,88632.0,0.0135785]
[1766736093735,0.4254,88651.0,88635.0,0.01144]
[1766736093935,0.4254,88651.0,88640.0,0.01128158]
[1766736094148,0.4254,88651.0,88635.0,0.07913292]
[1766736094149,0.00055,88640.0,88635.0,0.01144]
[1766736094506,0.4254,88651.0,88635.0,0.02272222]
[1766736094717,0.4254,88651.0,88635.0,0.01144]
[1766736094920,0.4254,88651.0,88635.0,0.07913278]
[1766736095124,0.4254,88651.0,88636.0,0.05641003]
[1766736095320,0.01144,88650.0,88642.0,0.01128133]
[1766736095544,0.0004,88658.0,88643.0,0.0135785]
[1766736095781,0.01144,88661.0,88645.0,0.39359]
[1766736095991,0.01144,88661.0,88647.0,0.01128069]
[1766736096194,0.01144,88661.0,88649.0,0.01128044]
[1766736096555,0.01144,88661.0,88650.0,0.01128031]
[1766736096779,0.01144,88661.0,88645.0,0.05651228]
[1766736096978,0.01144,88664.0,88652.0,0.01128006]
[1766736097179,0.01144,88664.0,88651.0,0.01128018]
[1766736097384,0.01144,88664.0,88652.0,0.01128006]
[1766736097597,0.01144,88664.0,88651.0,0.01128018]
[1766736097742,0.41436,88669.0,88652.0,0.01128006]
[1766736098089,0.01144,88668.0,88652.0,0.01128006]
[1766736098681,0.41436,88669.0,88653.0,0.01111973]
[1766736098886,0.0114,88667.0,88654.0,0.0112798]
[1766736099088,0.00049097,88655.0,88654.0,0.0112798]
[1766736099440,9.7e-07,88655.0,88653.0,0.01127993]
[1766736099567,0.0114,88667.0,88654.0,0.0112798]
[1766736099763,0.0114,88667.0,88654.0,0.05639903]
[1766736099995,0.0004,88669.0,88657.0,1e-08]
[1766736100211,0.01144,88667.0,88651.0,0.01128018]
[1766736100407,0.0118,88669.0,88652.0,0.01128006]
[1766736100612,0.41396,88665.0,88632.0,0.39359]
[1766736100789,0.415059,88652.0,88638.0,0.01128184]
[1766736101093,0.01144,88651.0,88635.0,0.01128222]
[1766736101308,0.01144,88651.0,88637.0,0.01128197]
[1766736101513,0.01144,88651.0,88638.0,0.01128184]
[1766736101688,0.01144,88650.0,88637.0,0.01128197]
[1766736101891,0.01144,88649.0,88636.0,0.01128209]
[1766736102092,0.01144,88649.0,88638.0,0.01128184]
[1766736102268,0.01144,88649.0,88640.0,0.01128158]
[1766736102752,0.000549,88640.0,88630.0,0.01144]
[1766736102869,0.50329993,88653.0,88625.0,0.01144]
[1766736102870,0.05640554,88644.0,88625.0,0.01144]
[1766736103074,0.05640554,88644.0,88610.0,0.63781258]
[1766736103075,0.01128184,88638.0,88618.0,0.01128438]
[1766736103344,0.50330158,88640.0,88621.0,0.011284]
[1766736103528,0.01144,88637.0,88622.0,0.01067543]
[1766736103728,0.01144,88637.0,88624.0,0.01128362]
[1766736103937,0.01144,88636.0,88622.0,0.0670946]
[1766736104294,0.49202,88640.0,88629.0,0.01128298]
[1766736104494,0.01144,88636.0,88627.0,0.01128324]
[1766736104717,0.01144,88639.0,88630.0,0.01128286]
[1766736105304,0.46468,88653.0,88632.0,0.0112826]
[1766736105508,0.46468,88651.0,88631.0,0.01128273]
[1766736105875,0.46468,88651.0,88632.0,0.0112826]
[1766736106086,0.46468,88651.0,88633.0,0.01128247]
[1766736106271,0.46468,88651.0,88634.0,0.01128235]
[1766736106492,0.46468,88651.0,88633.0,0.01128247]
[1766736106997,0.46468,88651.0,88633.0,0.06769433]
[1766736106998,0.01144,88650.0,88633.0,0.06769433]
[1766736107213,0.04512,88660.0,88643.0,2e-08]
[1766736107419,0.0114,88659.0,88645.0,0.01128095]
[1766736107624,0.0114,88659.0,88650.0,0.01128031]
[1766736107793,0.0114,88659.0,88646.0,0.01128082]
[1766736108002,0.000549,88646.0,88643.0,2e-08]
[1766736108403,0.0114,88649.0,88643.0,2e-08]
[1766736108781,0.0114,88649.0,88643.0,0.0003596]
[1766736109327,0.0114,88651.0,88643.0,0.0003596]
[1766736109463,0.0114,88651.0,88643.0,6e-07]
[1766736111729,0.01128057,88648.0,88643.0,6e-07]
[1766736111926,0.01128069,88647.0,88643.0,6e-07]
[1766736112132,0.01128069,88647.0,88627.0,0.02268324]
[1766736112133,0.01128082,88646.0,88627.0,0.0114]
[1766736112335,0.00035936,88646.0,88627.0,0.0114]
[1766736112539,0.00035936,88646.0,88628.0,0.01128311]
[1766736112771,0.00035936,88646.0,88631.0,0.01128273]
[1766736113154,0.00035936,88646.0,88633.0,0.01128247]
[1766736113365,0.00035936,88646.0,88635.0,0.01128222]
[1766736114150,0.00035936,88646.0,88629.0,0.47499]
[1766736114151,3.6e-07,88646.0,88642.0,1e-08]
[1766736114775,0.0114,88657.0,88639.0,0.47499]
[1766736114972,0.01150775,88657.0,88639.0,0.48627171]
[1766736115148,0.01150775,88657.0,88641.0,0.01128146]
[1766736115334,0.01150775,88657.0,88639.0,0.48627171]
[1766736115873,0.01150775,88657.0,88639.0,0.47499]
[1766736116047,0.01127955,88656.0,88639.0,0.47499]
[1766736116247,0.01127967,88655.0,88638.0,0.0114]
[1766736116450,0.000549,88638.0,88634.0,0.0114]
[1766736116659,0.01128006,88652.0,88634.0,0.0114]
[1766736117082,0.01128031,88650.0,88634.0,0.0114]
[1766736117327,0.0226798,88654.0,88634.0,0.49767235]
[1766736117872,0.06767975,88653.0,88634.0,0.48639]
[1766736118068,0.01127993,88653.0,88634.0,0.48639]
[1766736118327,0.01128006,88652.0,88634.0,0.48639]
[1766736118539,0.01128044,88649.0,88634.0,0.010851]
[1766736118886,0.01128057,88648.0,88634.0,0.010851]
[1766736119087,0.01128044,88649.0,88634.0,0.010851]
[1766736119288,0.01128031,88650.0,88634.0,0.010851]
[1766736119742,0.01128044,88649.0,88634.0,0.010851]
[1766736119901,0.01128082,88646.0,88634.0,0.010851]
[1766736120082,0.01128044,88649.0,88634.0,0.010851]
[1766736120523,0.01128069,88647.0,88634.0,0.010851]
[1766736120726,0.01128069,88647.0,88626.0,0.06789982]
[1766736120727,0.01128095,88645.0,88626.0,0.0002]
[1766736120974,0.05640791,88641.0,88625.0,0.0114]
[1766736121250,0.46468,88653.0,88633.0,0.01128247]
[1766736121385,0.04512,88662.0,88640.0,0.41492684]
[1766736121590,0.46492638,88663.0,88646.0,0.05640391]
[1766736121807,0.0114,88658.0,88649.0,0.01128044]
[1766736122008,0.46492638,88663.0,88647.0,0.01128069]
[1766736122210,7.5e-07,88657.0,88655.0,0.05639839]
[1766736122428,0.0004,88669.0,88659.0,0.01127892]
[1766736122429,0.0118,88669.0,88659.0,0.01127892]
[1766736122635,0.0118,88669.0,88655.0,0.01127967]
[1766736122890,0.0118,88669.0,88656.0,0.01127955]
[1766736123323,0.0118,88669.0,88657.0,0.01127942]
[1766736123754,0.0118,88669.0,88656.0,0.01127955]
[1766736124164,0.0118,88669.0,88656.0,0.48626955]
[1766736124371,0.0118,88669.0,88657.0,0.01127942]
[1766736124577,0.0118,88669.0,88660.0,0.01127904]
[1766736124776,0.0118,88669.0,88658.0,0.01127929]
[1766736124991,0.0118,88669.0,88657.0,0.06767597]
[1766736124992,0.0118,88669.0,88657.0,0.01127942]
[1766736125348,0.0118,88669.0,88658.0,0.01127929]
[1766736125559,0.000308,88669.0,88662.0,0.01127878]
[1766736125870,0.000308,88669.0,88661.0,0.01127891]
[1766736126076,0.000308,88669.0,88662.0,0.0676726]
[1766736126256,0.000308,88669.0,88663.0,0.01127866]
[1766736126450,0.000308,88669.0,88665.0,0.0112784]
[1766736126853,0.000308,88669.0,88664.0,0.01127853]
[1766736127076,0.00024543,88671.0,88666.0,0.01127828]
[1766736127252,0.0114,88679.0,88673.0,0.01127738]
[1766736127471,0.04552,88690.0,88671.0,0.000245]
[1766736127472,0.0114,88683.0,88671.0,0.000245]
[1766736127636,0.0002454,88679.0,88666.0,0.01127828]
[1766736127837,0.0002454,88679.0,88665.0,0.47499]
[1766736128095,0.0002454,88679.0,88660.0,0.0114]
[1766736128096,0.0002454,88679.0,88655.0,0.47499]
[1766736128302,0.011277,88676.0,88656.0,0.0114]
[1766736128453,0.011277,88676.0,88657.0,0.0114]
[1766736128454,0.47595726,88674.0,88657.0,0.0114]
[1766736128657,0.01127738,88673.0,88651.0,0.01128018]
[1766736128868,0.01127738,88673.0,88652.0,0.02268006]
[1766736129267,0.46468,88674.0,88654.0,0.0112798]
[1766736129601,0.46468,88674.0,88655.0,0.01127967]
[1766736129993,0.01127738,88673.0,88652.0,0.02268006]
[1766736130194,0.46468,88674.0,88653.0,0.01127993]
[1766736130398,0.0114,88675.0,88655.0,0.47499]
[1766736130602,0.0114,88675.0,88656.0,0.48626955]
[1766736130798,0.0002454,88679.0,88658.0,0.01127929]
[1766736131146,0.0116454,88679.0,88665.0,0.4862684]
[1766736131320,0.0116454,88679.0,88667.0,0.01127815]
[1766736132221,0.0116454,88679.0,88670.0,0.0135785]
[1766736132521,0.01153261,88679.0,88670.0,0.0135785]
[1766736132883,0.01153261,88679.0,88670.0,0.01127763]
[1766736133083,0.01153261,88679.0,88671.0,0.01127764]
[1766736133583,0.00013261,88679.0,88671.0,0.06766562]
[1766736133784,0.0004,88690.0,88679.0,0.00012939]
[1766736134442,0.0004,88690.0,88671.0,0.06766568]
[1766736134443,0.00024537,88687.0,88671.0,0.06766568]
[1766736134617,0.00024537,88687.0,88673.0,0.01127738]
[1766736134803,0.00024537,88687.0,88673.0,0.0114]
[1766736135225,0.00024537,88687.0,88673.0,0.02267738]
[1766736135425,0.00024537,88687.0,88673.0,0.0114]
[1766736135810,0.00024537,88687.0,88673.0,0.02267738]
[1766736136230,0.00024537,88687.0,88674.0,0.01127726]
[1766736136635,3.7e-07,88687.0,88680.0,0.01127649]
[1766736137013,3.7e-07,88687.0,88681.0,0.01127637]
[1766736137214,3.7e-07,88687.0,88683.0,1e-08]
[1766736137861,3.7e-07,88687.0,88685.0,0.0135785]
[1766736138019,3.7e-07,88687.0,88683.0,1e-08]
[1766736138218,3.7e-07,88687.0,88684.0,0.0135785]
[1766736138420,3.7e-07,88692.0,88684.0,0.0135785]
[1766736139002,3.7e-07,88692.0,88683.0,1e-08]
[1766736139763,0.01127534,88692.0,88683.0,1e-08]
[1766736139902,3.7e-07,88692.0,88683.0,1e-08]
[1766736143420,0.00024636,88675.0,88669.0,1e-08]
[1766736144209,0.00024636,88675.0,88670.0,0.0135785]
[1766736144378,0.00055,88670.0,88669.0,1e-08]
[1766736144546,0.00024636,88675.0,88669.0,1e-08]
[1766736144947,0.00024636,88675.0,88659.0,0.50281]
[1766736145170,0.00024636,88675.0,88659.0,0.50301]
[1766736145402,0.01152349,88675.0,88659.0,0.50301]
[1766736145609,0.0114,88674.0,88659.0,0.0002]
[1766736145930,0.00035,88659.0,88654.0,0.0135785]
[1766736146065,0.00035,88659.0,88643.0,0.01140001]
[1766736146272,0.0114,88663.0,88643.0,0.01150776]
[1766736146480,0.0114,88663.0,88644.0,0.01128107]
[1766736146845,0.0114,88663.0,88652.0,0.01128006]
[1766736147069,0.00835508,88663.0,88651.0,0.01128018]
[1766736147274,0.00835508,88663.0,88650.0,0.01128031]
[1766736147580,0.00835508,88663.0,88649.0,0.01128044]
[1766736147781,0.00835508,88663.0,88646.0,0.01128082]
[1766736147782,0.54175508,88663.0,88646.0,0.01128082]
[1766736147981,0.54175508,88663.0,88645.0,0.01128095]
[1766736148134,0.06,88662.0,88645.0,0.01128095]
[1766736148973,0.06,88662.0,88643.0,0.02278896]
[1766736149188,0.06,88662.0,88644.0,0.01128107]
[1766736149544,0.06,88662.0,88647.0,0.01128069]
[1766736149766,0.06,88662.0,88648.0,0.01128057]
[1766736150425,0.06,88662.0,88647.0,0.01128069]
[1766736150579,0.059801,88662.0,88648.0,0.01128057]
[1766736150778,0.059801,88662.0,88647.0,0.01128069]
[1766736150978,0.059801,88662.0,88648.0,0.01128057]
[1766736151181,0.059801,88662.0,88649.0,0.01128044]
[1766736152210,0.059801,88662.0,88648.0,0.01128057]
[1766736152761,0.059801,88662.0,88647.0,0.01128069]
[1766736153143,0.059801,88662.0,88649.0,0.01128044]
[1766736153346,0.059801,88662.0,88649.0,0.06768227]
[1766736153525,0.059801,88662.0,88645.0,0.0564046]
[1766736153728,0.593201,88662.0,88645.0,0.01128095]
[1766736153932,0.593201,88662.0,88643.0,0.01150776]
[1766736154298,0.593201,88662.0,88643.0,0.02278896]
[1766736155105,0.5334,88659.0,88643.0,0.00010776]
[1766736156052,0.5334,88659.0,88643.0,0.01138896]
[1766736156252,0.5334,88659.0,88642.0,0.01128133]
[1766736156253,0.5334,88659.0,88641.0,0.01140055]
[1766736156465,0.5334,88659.0,88641.0,5.5e-07]
[1766736156466,0.0002,88653.0,88641.0,5.5e-07]
[1766736157019,0.0002,88653.0,88642.0,0.01128133]
[1766736157251,0.0114,88655.0,88644.0,0.01128107]
[1766736157414,0.00010775,88659.0,88650.0,0.06768176]
[1766736157664,0.00010775,88659.0,88648.0,0.05640202]
[1766736157857,0.5334,88658.0,88650.0,3.7e-07]
[1766736158059,0.5334,88658.0,88650.0,0.01128031]
[1766736158256,0.0114,88657.0,88654.0,0.0112798]
[1766736158604,0.5334,88658.0,88652.0,0.01128006]
[1766736158780,0.5334,88658.0,88651.0,0.01128018]
[1766736159041,0.0002,88665.0,88656.0,0.01127955]
[1766736159252,0.0002,88679.0,88672.0,0.06766496]
[1766736159463,0.0002,88679.0,88673.0,0.01127738]
[1766736159678,0.0002,88679.0,88672.0,0.00010775]
[1766736160433,3.7e-07,88692.0,88686.0,0.01127573]
[1766736160637,3.7e-07,88692.0,88689.0,0.01127535]
[1766736160860,3.7e-07,88692.0,88691.0,0.0563755]
[1766736161184,3.7e-07,88692.0,88687.0,0.0114]
[1766736161355,0.000549,88691.0,88681.0,0.01127637]
[1766736161567,0.000549,88691.0,88682.0,0.0114]
[1766736161568,0.00055,88687.0,88682.0,0.0114]
[1766736161725,3.7e-07,88692.0,88682.0,0.0114]
[1766736162128,3.7e-07,88692.0,88680.0,0.0114]
[1766736163758,0.5334,88691.0,88678.0,0.0114]
[1766736163955,0.5334,88691.0,88672.0,0.01138526]
[1766736164163,0.5334,88691.0,88673.0,0.0114]
[1766736164492,0.5334,88691.0,88673.0,0.07906393]
[1766736164641,0.5334,88691.0,88674.0,0.01127726]
[1766736165281,0.5334,88691.0,88675.0,0.01127713]
[1766736165591,0.5334,88691.0,88676.0,0.011277]
[1766736165800,0.532851,88691.0,88685.0,0.01127586]
[1766736165997,0.532851,88691.0,88686.0,0.01127573]
[1766736166141,3.7e-07,88692.0,88689.0,0.01127535]
[1766736167199,3.7e-07,88693.0,88690.0,0.01127522]
[1766736167428,3.7e-07,88693.0,88689.0,0.06765193]
[1766736167429,1.0,88700.0,88692.0,0.01127497]
[1766736167627,1.0,88700.0,88693.0,0.01127484]
[1766736168021,1.0,88700.0,88692.0,0.01127497]
[1766736168394,1.0,88700.0,88693.0,0.01127484]
[1766736168613,0.56003,88709.0,88698.0,0.0563709]
[1766736168826,0.0004,88712.0,88702.0,0.06994642]
[1766736168978,0.0004,88712.0,88702.0,0.0135785]
[1766736169186,0.0002453,88703.0,88702.0,0.0135785]
[1766736169985,0.00035311,88703.0,88692.0,0.01127497]
[1766736170197,0.553939,88702.0,88693.0,0.01136]
[1766736170408,0.00055,88693.0,88680.0,0.01127649]
[1766736170610,0.55339,88694.0,88687.0,0.01136]
[1766736170810,0.55339,88694.0,88685.0,0.01136]
[1766736171498,0.55339,88694.0,88673.0,0.05638679]
[1766736171706,0.000549,88685.0,88674.0,0.01136]
[1766736171908,0.000549,88685.0,88675.0,0.01127713]
[1766736172104,0.000549,88685.0,88676.0,0.011277]
[1766736172309,0.55339,88694.0,88676.0,0.011277]
[1766736172510,0.55339,88694.0,88675.0,0.01127713]
[1766736172929,0.01136,88695.0,88677.0,0.01127688]
[1766736173169,0.01136,88695.0,88676.0,0.35375]
[1766736173984,0.01136,88695.0,88677.0,0.01127688]
[1766736174137,0.01136,88695.0,88676.0,0.35375]
[1766736174476,0.01136,88695.0,88676.0,0.365027]
[1766736174629,0.01136,88695.0,88677.0,0.01127688]
[1766736175380,0.01136,88695.0,88676.0,0.365027]
[1766736175986,0.01136,88695.0,88677.0,0.01127688]
[1766736176148,0.01136,88695.0,88676.0,0.35375]
[1766736176644,0.01136,88695.0,88676.0,0.365027]
[1766736176966,0.01136,88695.0,88676.0,0.35375]
[1766736177135,0.01136,88695.0,88676.0,0.365027]
[1766736177335,0.55389,88715.0,88686.0,0.24084]
[1766736177531,0.01127319,88706.0,88686.0,0.24084]
[1766736177822,0.55339,88708.0,88686.0,0.24084]
[1766736178391,0.56466294,88708.0,88686.0,0.24084]
[1766736178572,0.01127306,88707.0,88686.0,0.24084]
[1766736179027,0.56466294,88708.0,88686.0,0.24084]
[1766736179173,0.55339,88708.0,88686.0,0.25211573]
[1766736179384,3.11e-06,88703.0,88690.0,0.01127522]
[1766736179675,3.11e-06,88703.0,88691.0,0.2084251]
[1766736179879,3.11e-06,88708.0,88692.0,0.19706497]
[1766736180091,3.11e-06,88708.0,88692.0,0.19717278]
[1766736180331,3.11e-06,88708.0,88692.0,0.18589781]
[1766736180539,3.11e-06,88708.0,88699.0,0.0135785]
[1766736180963,0.01176,88713.0,88699.0,0.0135785]
[1766736181181,0.01176,88713.0,88692.0,0.12948269]
[1766736181182,0.553939,88699.0,88680.0,0.06765859]
[1766736181361,0.55349773,88699.0,88681.0,0.01127637]
[1766736181610,0.55349773,88699.0,88680.0,0.01136]
[1766736181824,0.55349773,88699.0,88680.0,0.10341]
[1766736182004,0.00010773,88699.0,88680.0,0.11468649]
[1766736182246,0.00010773,88699.0,88680.0,0.10341]
[1766736183454,0.00010773,88699.0,88682.0,0.04928]
[1766736183867,0.55339,88698.0,88682.0,0.01127624]
[1766736184172,0.55339,88698.0,88680.0,0.02263649]
[1766736184659,0.55339,88698.0,88681.0,0.01127637]
[1766736184862,0.55339,88698.0,88680.0,0.01136]
[1766736185067,0.55339,88698.0,88674.0,0.05638519]
[1766736185068,0.000549,88680.0,88667.0,0.0135785]
[1766736185227,0.55339,88692.0,88669.0,0.06259903]
[1766736185444,0.55359,88690.0,88670.0,0.0002]
[1766736185625,0.55339,88688.0,88670.0,0.0002]
[1766736186258,0.56466548,88688.0,88670.0,0.0002]
[1766736186656,0.01127586,88685.0,88670.0,0.0002]
[1766736186854,0.01127586,88685.0,88646.0,0.1461]
[1766736186855,0.55339,88676.0,88654.0,0.0112798]
[1766736187060,0.56475,88675.0,88657.0,0.01136]
[1766736187298,0.56475,88674.0,88657.0,0.01136]
[1766736187504,0.01136,88680.0,88674.0,0.000199]
[1766736187677,0.01136,88680.0,88664.0,0.01127853]
[1766736188109,0.01136,88680.0,88666.0,0.01127828]
[1766736188446,0.01136,88680.0,88665.0,0.0112784]
[1766736188582,0.01136,88680.0,88662.0,0.01127878]
[1766736188769,0.01136,88680.0,88663.0,0.01127866]
[1766736188969,0.01136,88680.0,88665.0,0.0112784]
[1766736189220,0.01136,88680.0,88667.0,0.01127815]
[1766736189412,0.55339,88687.0,88668.0,0.01127802]
[1766736189584,0.55339,88687.0,88666.0,0.06766916]
[1766736189804,0.01136,88686.0,88666.0,0.01127828]
[1766736190003,0.55339,88685.0,88662.0,0.06775367]
[1766736190185,0.55339,88685.0,88667.0,0.01127815]
[1766736190390,0.011161,88684.0,88666.0,0.01127828]
[1766736190787,0.011161,88684.0,88664.0,0.06767062]
[1766736191237,0.011161,88684.0,88664.0,0.01127853]
[1766736191376,0.011161,88684.0,88666.0,0.01127828]
[1766736191581,0.01145253,88684.0,88666.0,0.01127828]
[1766736191829,0.01145253,88684.0,88665.0,0.0112784]
[1766736192210,0.01145253,88684.0,88666.0,0.01127828]
[1766736192427,0.01145253,88684.0,88667.0,0.01127815]
[1766736192627,0.01145253,88684.0,88666.0,0.01127828]
[1766736192790,0.01145253,88684.0,88673.0,0.01127738]
[1766736193020,0.01145253,88684.0,88669.0,0.01127789]
[1766736193824,0.01145253,88684.0,88671.0,0.01127764]
[1766736194530,0.01145253,88684.0,88672.0,0.01127751]
[1766736194931,0.00029153,88684.0,88674.0,0.01127726]
[1766736195247,0.00029153,88684.0,88676.0,0.011277]
[1766736195580,3.082e-05,88690.0,88684.0,0.000291]
[1766736196080,3.082e-05,88690.0,88681.0,0.01127637]
[1766736196257,3.082e-05,88690.0,88684.0,0.01127599]
[1766736196423,3.082e-05,88690.0,88688.0,0.05637721]
[1766736196632,0.0004,88712.0,88701.0,0.01127383]
[1766736196633,0.01176,88712.0,88701.0,0.01127383]
[1766736197259,0.33873,88711.0,88701.0,0.01127383]
[1766736197462,0.33873,88711.0,88703.0,0.01127357]
[1766736197665,0.33873,88720.0,88711.0,0.00055]
[1766736197890,0.00010777,88720.0,88711.0,0.00055]
[1766736198042,0.00010777,88720.0,88710.0,0.59105293]
[1766736198043,0.33913,88729.0,88713.0,0.0112723]
[1766736198246,0.33913,88729.0,88714.0,0.01127217]
[1766736198482,0.01136,88728.0,88715.0,0.01127205]
[1766736198802,0.01136,88728.0,88717.0,0.01127179]
[1766736198972,0.01136,88728.0,88714.0,0.01127217]
[1766736199173,0.33913,88729.0,88713.0,0.06763324]
[1766736199388,0.01136,88727.0,88715.0,0.05636025]
[1766736199584,0.01136,88728.0,88717.0,0.01127179]
[1766736199799,0.01136,88728.0,88720.0,0.01127141]
[1766736199970,0.0004,88733.0,88719.0,0.01127154]
[1766736200545,0.000549,88719.0,88710.0,0.01127268]
[1766736200659,0.33873,88732.0,88717.0,0.01127179]
[1766736200862,0.33873,88732.0,88720.0,0.01127141]
[1766736201162,0.04552,88742.0,88723.0,1e-08]
[1766736201163,0.01136,88735.0,88723.0,1e-08]
[1766736201367,0.0004,88742.0,88723.0,1e-08]
[1766736201565,0.01136,88741.0,88726.0,0.01127065]
[1766736201790,0.01136,88742.0,88730.0,0.59105293]
[1766736201985,0.33873,88761.0,88742.0,0.00055]
[1766736202184,0.33873,88761.0,88741.0,0.01126874]
[1766736202533,0.33873,88759.0,88740.0,0.01126887]
[1766736202747,0.33873,88759.0,88739.0,0.011269]
[1766736203020,0.33873,88759.0,88738.0,0.0249385]
[1766736203259,0.33908938,88759.0,88738.0,0.03620762]
[1766736203427,0.35044938,88759.0,88740.0,0.01126887]
[1766736203658,0.35044938,88759.0,88738.0,0.0249385]
[1766736204145,0.01126659,88758.0,88738.0,0.0249385]
[1766736204351,0.35044938,88759.0,88738.0,0.0249385]
[1766736204510,0.01126659,88758.0,88738.0,0.0249385]
[1766736204718,0.36171584,88759.0,88738.0,0.0249385]
[1766736204920,0.01126671,88757.0,88738.0,0.0249385]
[1766736205120,0.01126671,88757.0,88734.0,0.01126963]
[1766736205121,0.33873,88749.0,88726.0,0.01127065]